lending/lending_fUSD_20241229
["ID","MTS","AMOUNT","RATE_DAILY","PERIOD"]
[347122477,1735511444414,-722.41,0.00015739,2]
[347122478,1735511444424,-722.41,0.00016013,2]
[347122479,1735511444433,-722.41,0.00016287,2]
[347122480,1735511444443,-500.0,0.00016399,2]
[347122481,1735511444452,-81973.59768636,0.000164,2]
[347122482,1735511444464,-3454.06841754,0.000164,2]
[347122483,1735511444476,-3446.84994775,0.000164,2]
[347122484,1735511444491,-6664.5727,0.000164,2]
[347122485,1735511444518,-1769.98,0.00014917,2]
[347122486,1735511444527,-1417.20179548,0.000164,2]
[347122487,1735511444539,-3953.50732726,0.000164,2]
[347122488,1735511444555,-1453.990171,0.000164,2]
[347122489,1735511444576,-12438.08928184,0.000164,2]
[347122490,1735511444968,-500.0,0.00012999,2]
[347122491,1735511444978,-217.8093996,0.00014643,2]
[347122492,1735511444994,-483.64173947,0.00014643,2]
[347122493,1735511445014,-237.57886093,0.00014643,2]
[347122494,1735511445023,-939.03,0.00014917,2]
[347122495,1735511445032,-213.39113907,0.00015191,2]
[347122496,1735511445050,-1556.58886093,0.00015191,2]
[347122497,1735511445059,-534.21112907,0.00015191,2]
[347122521,1735511446229,-500.0,0.00012999,2]
[347122522,1735511446239,-501.75,0.00012999,2]
[347122523,1735511446249,-500.0,0.00013273,2]
[347122524,1735511446259,-501.75,0.00013273,2]
[347122525,1735511446268,-404.81887093,0.00015191,2]
[347122526,1735511446278,-1769.98,0.00015465,2]
[347122527,1735511446288,-939.03,0.00015465,2]
[347122528,1735511446298,-1769.98,0.00015739,2]
[347122529,1735511446307,-939.03,0.00015739,2]
[347122530,1735511446317,-1769.98,0.00016013,2]
[347122531,1735511446329,-939.03,0.00016013,2]
[347122532,1735511446338,-1769.98,0.00016287,2]
[347122533,1735511446348,-467693.83158914,0.000164,2]
[347122534,1735511446360,-5094.5,0.000164,2]
[347122535,1735511446372,-5523.5,0.000164,2]
[347122536,1735511446383,-197504.07582488,0.000164,2]
[347122537,1735511446393,-187680.33964466,0.000164,2]
[347122538,1735511446404,-123984.37108659,0.000164,2]
[347122539,1735511446413,-150.0,0.00016438,2]
[347122540,1735511446423,-163.12985729,0.00016449,10]
[347122541,1735511446432,-300.0,0.0001646,2]
[347122542,1735511446441,-300.0,0.0001646,2]
[347122543,1735511446451,-300.0,0.0001646,2]
[347122544,1735511446460,-2201.57,0.00016461,2]
[347122545,1735511446469,-1141.7,0.00016461,2]
[347122546,1735511446478,-2056.46,0.00016461,2]
[347122547,1735511446488,-14806.22,0.00016461,2]
[347122548,1735511446497,-500.0,0.00016461,2]
[347122549,1735511446506,-563.06,0.00016461,2]
[347122550,1735511446515,-1407.62,0.00016461,2]
[347122551,1735511446524,-1194.17,0.00016461,2]
[347122552,1735511446533,-500.0,0.00016461,2]
[347122553,1735511446542,-863.4,0.00016461,2]
[347122554,1735511446551,-300.0,0.00016461,2]
[347122555,1735511446561,-2562.38,0.00016461,2]
[347122556,1735511446570,-511.84,0.00016461,2]
[347122557,1735511446581,-4845.11,0.00016461,2]
[347122558,1735511446590,-1089.18,0.00016461,2]
[347122559,1735511446600,-2536.61,0.00016461,2]
[347122560,1735511446609,-2536.61,0.00016461,2]
[347122561,1735511446619,-500.0,0.00016461,2]
[347122562,1735511446628,-300.0,0.00016461,2]
[347122563,1735511446637,-1544.23,0.00016461,2]
[347122564,1735511446647,-1356.3,0.00016461,2]
[347122565,1735511446660,-1085.15,0.00016461,2]
[347122566,1735511446669,-500.0,0.00016461,2]
[347122567,1735511446681,-1241.09,0.00016461,2]
[347122568,1735511446694,-961.59,0.00016461,2]
[347122569,1735511446703,-300.0,0.00016461,2]
[347122570,1735511446714,-1380.76,0.00016461,2]
[347122571,1735511446723,-300.0,0.00016462,2]
[347122573,1735511446734,-438.82462211,0.00016462,2]
[347122575,1735511446744,-500.0,0.00016462,2]
[347122576,1735511446920,-500.0,0.00016462,2]
[347122577,1735511446930,-500.0,0.00016462,2]
[347122578,1735511446940,-500.0,0.00016462,2]
[347122579,1735511446949,-500.0,0.00016462,2]
[347122580,1735511446958,-557.79,0.00016462,2]
[347122581,1735511446968,-500.0,0.00016462,2]
[347122582,1735511446977,-500.0,0.00016462,2]
[347122583,1735511446987,-500.0,0.00016462,2]
[347122584,1735511446996,-563.58,0.00016462,2]
[347122585,1735511447006,-500.0,0.00016462,2]
[347122586,1735511447016,-500.0,0.00016462,2]
[347122587,1735511447025,-500.0,0.00016462,2]
[347122588,1735511447035,-500.0,0.00016462,2]
[347122589,1735511447044,-500.0,0.00016462,2]
[347122590,1735511447054,-589.22,0.00016462,2]
[347122591,1735511447064,-324.56584885,0.00016462,2]
[347122592,1735511447073,-500.0,0.00016462,2]
[347122593,1735511447084,-500.0,0.00016462,2]
[347122594,1735511447093,-500.0,0.00016462,2]
[347122595,1735511447102,-500.0,0.00016462,2]
[347122596,1735511447112,-500.0,0.00016462,2]
[347122597,1735511447121,-500.0,0.00016462,2]
[347122598,1735511447130,-500.0,0.00016462,2]
[347122599,1735511447140,-500.0,0.00016462,2]
[347122600,1735511447149,-500.0,0.00016462,2]
[347122601,1735511447159,-500.0,0.00016462,2]
[347122602,1735511447168,-500.0,0.00016462,2]
[347122603,1735511447177,-500.0,0.00016462,2]
[347122604,1735511447186,-500.0,0.00016462,2]
[347122605,1735511447195,-500.0,0.00016462,2]
[347122606,1735511447204,-500.0,0.00016462,2]
[347122607,1735511447214,-500.0,0.00016462,2]
[347122608,1735511447224,-581.42,0.00016462,2]
[347122609,1735511447233,-500.0,0.00016462,2]
[347122610,1735511447243,-624.54,0.00016462,2]
[347122611,1735511447252,-500.0,0.00016462,2]
[347122612,1735511447262,-583.84,0.00016462,2]
[347122613,1735511447271,-500.0,0.00016462,2]
[347122614,1735511447280,-500.0,0.00016462,2]
[347122615,1735511447289,-500.0,0.00016462,2]
[347122616,1735511447299,-664.95,0.00016462,2]
[347122617,1735511447308,-500.0,0.00016462,2]
[347122618,1735511447319,-500.0,0.00016462,2]
[347122619,1735511447330,-500.0,0.00016462,2]
[347122620,1735511447340,-500.0,0.00016462,2]
[347122621,1735511447349,-500.0,0.00016462,2]
[347122622,1735511447358,-500.0,0.00016462,2]
[347122623,1735511447367,-500.0,0.00016462,2]
[347122624,1735511447376,-500.0,0.00016462,2]
[347122625,1735511447386,-500.0,0.00016462,2]
[347122626,1735511447395,-500.0,0.00016462,2]
[347122627,1735511447405,-500.0,0.00016462,2]
[347122628,1735511447414,-500.0,0.00016462,2]
[347122629,1735511447423,-500.0,0.00016462,2]
[347122630,1735511447433,-500.0,0.00016462,2]
[347122631,1735511447442,-500.0,0.00016462,2]
[347122632,1735511447452,-710.59,0.00016462,2]
[347122633,1735511447461,-500.0,0.00016462,2]
[347122634,1735511447470,-500.0,0.00016462,2]
[347122635,1735511447479,-500.0,0.00016462,2]
[347122636,1735511447489,-500.0,0.00016462,2]
[347122637,1735511447498,-500.0,0.00016462,2]
[347122638,1735511447507,-500.0,0.00016462,2]
[347122639,1735511447517,-505.46544462,0.00016462,2]
[347122640,1735511447527,-691.45,0.00016462,2]
[347122641,1735511447536,-500.0,0.00016462,2]
[347122642,1735511447546,-500.0,0.00016462,2]
[347122643,1735511447555,-500.0,0.00016462,2]
[347122644,1735511447564,-603.48094754,0.00016462,2]
[347122645,1735511447574,-680.9,0.00016462,2]
[347122646,1735511447585,-865.61,0.00016462,2]
[347122647,1735511447594,-500.0,0.00016462,2]
[347122648,1735511447603,-500.0,0.00016462,2]
[347122649,1735511447613,-500.0,0.00016462,2]
[347122650,1735511447623,-594.52,0.00016462,2]
[347122651,1735511447632,-500.0,0.00016462,2]
[347122652,1735511447642,-500.0,0.00016462,2]
[347122653,1735511447654,-500.0,0.00016462,2]
[347122654,1735511447665,-500.0,0.00016462,2]
[347122655,1735511447675,-500.0,0.00016462,2]
[347122656,1735511447683,-500.0,0.00016462,2]
[347122657,1735511447693,-500.0,0.00016462,2]
[347122658,1735511447703,-500.0,0.00016462,2]
[347122659,1735511447712,-500.0,0.00016462,2]
[347122660,1735511447721,-771.83,0.00016462,2]
[347122661,1735511447731,-500.0,0.00016462,2]
[347122662,1735511447740,-500.0,0.00016462,2]
[347122663,1735511447749,-500.0,0.00016462,2]
[347122664,1735511447759,-500.0,0.00016462,2]
[347122665,1735511447768,-500.0,0.00016462,2]
[347122666,1735511447778,-500.0,0.00016462,2]
[347122667,1735511447787,-500.0,0.00016462,2]
[347122668,1735511447796,-500.0,0.00016462,2]
[347122669,1735511447806,-500.0,0.00016462,2]
[347122670,1735511447815,-650.06,0.00016462,2]
[347122671,1735511447825,-500.0,0.00016462,2]
[347122672,1735511447838,-500.0,0.00016462,2]
[347122673,1735511447847,-500.0,0.00016462,2]
[347122674,1735511447857,-500.0,0.00016462,2]
[347122675,1735511447867,-500.0,0.00016462,2]
[347122676,1735511447876,-507.15173181,0.00016462,2]
[347122677,1735511447886,-604.89,0.00016462,2]
[347122678,1735511447895,-586.86,0.00016462,2]
[347122679,1735511447906,-500.0,0.00016462,2]
[347122680,1735511447916,-827.23,0.00016462,2]
[347122681,1735511447926,-1649.54,0.00016462,2]
[347122682,1735511447936,-500.0,0.00016462,2]
[347122683,1735511447945,-500.0,0.00016462,2]
[347122684,1735511447954,-500.0,0.00016462,2]
[347122685,1735511447964,-500.0,0.00016462,2]
[347122686,1735511447973,-500.0,0.00016462,2]
[347122687,1735511447983,-500.0,0.00016462,2]
[347122688,1735511447992,-839.63,0.00016462,2]
[347122689,1735511448002,-514.20168241,0.00016462,2]
[347122690,1735511448012,-365.01224451,0.00016462,2]
[347122691,1735511448022,-571.71,0.00016462,2]
[347122692,1735511448032,-500.0,0.00016462,2]
[347122693,1735511448041,-500.0,0.00016462,2]
[347122694,1735511448050,-4173.56,0.00016462,2]
[347122695,1735511448060,-629.13,0.00016462,2]
[347122696,1735511448069,-307.601811,0.00016462,2]
[347122697,1735511448080,-612.04,0.00016462,2]
[347122698,1735511448089,-667.35,0.00016462,2]
[347122699,1735511448099,-500.0,0.00016462,2]
[347122700,1735511448109,-500.0,0.00016462,2]
[347122701,1735511448118,-500.0,0.00016462,2]
[347122702,1735511448128,-500.0,0.00016462,2]
[347122703,1735511448137,-500.0,0.00016462,2]
[347122704,1735511448146,-2661.42,0.00016462,2]
[347122705,1735511448156,-1005.03,0.00016462,2]
[347122706,1735511448166,-638.09411818,0.00016462,2]
[347122707,1735511448175,-546.36,0.00016462,2]
[347122708,1735511448185,-500.0,0.00016462,2]
[347122709,1735511448195,-300.0,0.00016462,2]
[347122710,1735511448206,-660.48,0.00016462,2]
[347122711,1735511448216,-500.0,0.00016462,2]
[347122712,1735511448227,-500.0,0.00016462,2]
[347122713,1735511448237,-514.8302402,0.00016462,2]
[347122714,1735511448247,-500.0,0.00016462,2]
[347122715,1735511448257,-698.17,0.00016462,2]
[347122716,1735511448267,-500.0,0.00016462,2]
[347122717,1735511448277,-2009.37,0.00016462,2]
[347122718,1735511448287,-500.0,0.00016462,2]
[347122719,1735511448296,-500.0,0.00016462,2]
[347122720,1735511448306,-500.0,0.00016462,2]
[347122721,1735511448315,-840.09,0.00016462,2]
[347122722,1735511448325,-500.0,0.00016462,2]
[347122723,1735511448337,-500.0,0.00016462,2]
[347122724,1735511448346,-500.0,0.00016462,2]
[347122725,1735511448356,-500.0,0.00016462,2]
[347122726,1735511448365,-500.0,0.00016462,2]
[347122727,1735511448375,-500.0,0.00016462,2]
[347122728,1735511448384,-775.85,0.00016462,2]
[347122729,1735511448394,-500.0,0.00016462,2]
[347122730,1735511448403,-500.0,0.00016462,2]
[347122731,1735511448412,-500.0,0.00016462,2]
[347122732,1735511448422,-500.0,0.00016462,2]
[347122733,1735511448431,-500.0,0.00016462,2]
[347122734,1735511448440,-500.0,0.00016462,2]
[347122735,1735511448450,-649.37,0.00016462,2]
[347122736,1735511448459,-500.0,0.00016462,2]
[347122737,1735511448469,-500.0,0.00016462,2]
[347122738,1735511448479,-486.37626826,0.00016462,2]
[347122739,1735511448489,-500.0,0.00016462,2]
[347122740,1735511448499,-501.00793606,0.00016462,2]
[347122741,1735511448508,-500.0,0.00016462,2]
[347122742,1735511448519,-511.45446238,0.00016462,2]
[347122743,1735511448528,-500.0,0.00016462,2]
[347122744,1735511448538,-201.71695154,0.00016462,2]
[347122745,1735511448547,-500.0,0.00016462,2]
[347122746,1735511448557,-512.44,0.00016462,2]
[347122747,1735511448568,-1000.0,0.00016462,30]
[347122748,1735511448579,-966.73,0.00016462,2]
[347122749,1735511448588,-600.08,0.00016462,2]
[347122750,1735511448598,-500.0,0.00016462,2]
[347122751,1735511448607,-500.0,0.00016462,2]
[347122752,1735511448618,-500.0,0.00016462,2]
[347122753,1735511448628,-500.0,0.00016462,2]
[347122754,1735511448638,-500.0,0.00016462,2]
[347122755,1735511448649,-859.01,0.00016462,2]
[347122756,1735511448660,-10404.32,0.00016463,2]
[347122757,1735511448670,-500.0,0.00016463,2]
[347122758,1735511448679,-502.27714388,0.00016463,2]
[347122759,1735511448691,-500.0,0.00016463,2]
[347122760,1735511448700,-156.627051,0.00016463,2]
[347122761,1735511448709,-505.28180807,0.00016463,2]
[347122762,1735511448719,-469.9491991,0.00016463,2]
[347122763,1735511448730,-500.0,0.00016463,2]
[347122764,1735511448740,-500.0,0.00016463,2]
[347122765,1735511448749,-1025.79,0.00016463,2]
[347122766,1735511448759,-507.64528435,0.00016463,2]
[347122767,1735511448769,-1181.85,0.00016463,2]
[347122768,1735511448779,-433.91429704,0.00016463,2]
[347122769,1735511448788,-500.0,0.00016463,2]
[347122770,1735511448798,-500.0,0.00016463,2]
[347122771,1735511448808,-256.17070529,0.00016463,2]
[347122772,1735511448818,-500.0,0.00016463,2]
[347122773,1735511448829,-505.0350929,0.00016463,2]
[347122774,1735511448838,-500.0,0.00016463,2]
[347122775,1735511448848,-3678.39,0.00016463,2]
[347122776,1735511448858,-500.0,0.00016463,2]
[347122777,1735511448867,-500.0,0.00016463,2]
[347122778,1735511448878,-500.0,0.00016463,2]
[347122779,1735511448888,-500.0,0.00016463,2]
[347122780,1735511448898,-500.0,0.00016463,2]
[347122781,1735511448908,-500.0,0.00016463,2]
[347122782,1735511448917,-500.0,0.00016463,2]
[347122783,1735511448926,-500.0,0.00016463,2]
[347122784,1735511448936,-1205.04,0.00016463,2]
[347122785,1735511448945,-500.0,0.00016463,2]
[347122786,1735511448956,-500.0,0.00016463,2]
[347122787,1735511448965,-500.0,0.00016463,2]
[347122788,1735511448975,-500.0,0.00016463,2]
[347122789,1735511448985,-2819.71,0.00016463,2]
[347122790,1735511448995,-500.0,0.00016463,2]
[347122791,1735511449004,-500.0,0.00016463,2]
[347122792,1735511449014,-500.0,0.00016463,2]
[347122793,1735511449024,-500.0,0.00016463,2]
[347122794,1735511449033,-154.50651557,0.00016463,2]
[347122795,1735511449042,-500.0,0.00016463,2]
[347122796,1735511449052,-500.0,0.00016463,2]
[347122797,1735511449061,-648.31436106,0.00016463,2]
[347122798,1735511449071,-500.0,0.00016463,2]
[347122799,1735511449082,-500.0,0.00016463,2]
[347122800,1735511449092,-500.0,0.00016463,2]
[347122801,1735511449102,-500.0,0.00016463,2]
[347122802,1735511449111,-500.0,0.00016463,2]
[347122803,1735511449121,-500.0,0.00016463,2]
[347122804,1735511449131,-500.0,0.00016463,2]
[347122805,1735511449140,-500.0,0.00016463,2]
[347122806,1735511449149,-1361.44,0.00016463,2]
[347122807,1735511449159,-500.0,0.00016463,2]
[347122808,1735511449168,-500.0,0.00016463,2]
[347122809,1735511449177,-618.25,0.00016463,2]
[347122810,1735511449187,-210.3508512,0.00016463,2]
[347122811,1735511449196,-500.0,0.00016463,2]
[347122812,1735511449206,-500.0,0.00016463,2]
[347122813,1735511449216,-500.0,0.00016463,2]
[347122814,1735511449226,-500.0,0.00016463,2]
[347122815,1735511449235,-500.0,0.00016463,2]
[347122816,1735511449245,-500.0,0.00016463,2]
[347122817,1735511449255,-500.0,0.00016463,2]
[347122818,1735511449264,-500.0,0.00016463,2]
[347122819,1735511449275,-500.0,0.00016463,2]
[347122820,1735511449284,-500.0,0.00016463,2]
[347122821,1735511449294,-500.0,0.00016463,2]
[347122822,1735511449304,-500.0,0.00016463,2]
[347122823,1735511449314,-5197.9,0.00016463,2]
[347122824,1735511449324,-500.0,0.00016463,2]
[347122825,1735511449336,-500.0,0.00016463,2]
[347122826,1735511449346,-671.12,0.00016463,2]
[347122827,1735511449355,-500.0,0.00016463,2]
[347122828,1735511449501,-500.0,0.00016463,2]
[347122829,1735511449512,-500.0,0.00016463,2]
[347122830,1735511449522,-500.0,0.00016463,2]
[347122831,1735511449531,-500.0,0.00016463,2]
[347122832,1735511449541,-500.0,0.00016463,2]
[347122833,1735511449551,-500.0,0.00016463,2]
[347122834,1735511449560,-500.0,0.00016463,2]
[347122835,1735511449569,-500.0,0.00016463,2]
[347122836,1735511449579,-500.0,0.00016463,2]
[347122837,1735511449588,-500.0,0.00016463,2]
[347122838,1735511449598,-500.0,0.00016463,2]
[347122839,1735511449607,-1351.71,0.00016463,2]
[347122840,1735511449616,-500.0,0.00016463,2]
[347122841,1735511449625,-500.0,0.00016463,2]
[347122842,1735511449635,-500.0,0.00016463,2]
[347122843,1735511449644,-500.0,0.00016463,2]
[347122844,1735511449655,-500.0,0.00016463,2]
[347122845,1735511449667,-500.0,0.00016463,2]
[347122846,1735511449676,-500.0,0.00016463,2]
[347122847,1735511449686,-500.0,0.00016463,2]
[347122848,1735511449697,-500.0,0.00016463,2]
[347122849,1735511449706,-500.0,0.00016463,2]
[347122850,1735511449715,-500.0,0.00016463,2]
[347122851,1735511449724,-500.0,0.00016463,2]
[347122852,1735511449734,-500.0,0.00016463,2]
[347122853,1735511449743,-500.0,0.00016463,2]
[347122854,1735511449753,-500.0,0.00016463,2]
[347122855,1735511449762,-2974.02,0.00016463,2]
[347122856,1735511449772,-500.0,0.00016463,2]
[347122857,1735511449781,-500.0,0.00016463,2]
[347122858,1735511449790,-500.0,0.00016463,2]
[347122859,1735511449800,-500.0,0.00016463,2]
[347122860,1735511449809,-500.0,0.00016463,2]
[347122861,1735511449818,-500.0,0.00016463,2]
[347122862,1735511449829,-500.0,0.00016463,2]
[347122863,1735511449839,-500.0,0.00016463,2]
[347122864,1735511449848,-500.0,0.00016463,2]
[347122865,1735511449858,-500.0,0.00016463,2]
[347122866,1735511449868,-500.0,0.00016463,2]
[347122867,1735511449877,-500.0,0.00016463,2]
[347122868,1735511449887,-1183.88,0.00016463,2]
[347122869,1735511449897,-500.0,0.00016463,2]
[347122870,1735511449906,-500.0,0.00016463,2]
[347122871,1735511449916,-500.0,0.00016463,2]
[347122872,1735511449926,-568.93,0.00016463,2]
[347122873,1735511449935,-500.0,0.00016463,2]
[347122874,1735511449944,-500.0,0.00016463,2]
[347122875,1735511449953,-500.0,0.00016463,2]
[347122876,1735511449963,-1345.92,0.00016463,2]
[347122877,1735511449972,-803.18,0.00016463,2]
[347122878,1735511449982,-500.0,0.00016463,2]
[347122879,1735511449991,-500.0,0.00016463,2]
[347122880,1735511450002,-500.0,0.00016463,2]
[347122881,1735511450012,-592.74,0.00016463,2]
[347122882,1735511450021,-500.0,0.00016463,2]
[347122883,1735511450031,-500.0,0.00016463,2]
[347122884,1735511450041,-500.0,0.00016463,2]
[347122885,1735511450051,-500.0,0.00016463,2]
[347122886,1735511450060,-519.39,0.00016463,2]
[347122887,1735511450070,-503.9,0.00016463,2]
[347122888,1735511450079,-500.0,0.00016463,2]
[347122889,1735511450089,-500.0,0.00016463,2]
[347122890,1735511450099,-500.0,0.00016463,2]
[347122891,1735511450108,-500.0,0.00016463,2]
[347122892,1735511450118,-500.0,0.00016463,2]
[347122893,1735511450127,-2302.53,0.00016463,2]
[347122894,1735511450136,-500.0,0.00016463,2]
[347122895,1735511450146,-500.0,0.00016463,2]
[347122896,1735511450155,-500.0,0.00016463,2]
[347122897,1735511450164,-500.0,0.00016463,2]
[347122898,1735511450174,-742.92,0.00016463,2]
[347122899,1735511450183,-500.0,0.00016463,2]
[347122900,1735511450193,-3969.82,0.00016463,2]
[347122901,1735511450202,-3969.82,0.00016463,2]
[347122902,1735511450212,-500.0,0.00016463,2]
[347122903,1735511450222,-500.0,0.00016463,2]
[347122904,1735511450231,-527.0,0.00016463,2]
[347122905,1735511450240,-500.0,0.00016463,2]
[347122906,1735511450250,-649.38,0.00016463,2]
[347122907,1735511450260,-500.0,0.00016463,2]
[347122908,1735511450269,-500.0,0.00016463,2]
[347122909,1735511450278,-500.0,0.00016463,2]
[347122910,1735511450288,-500.0,0.00016463,2]
[347122911,1735511450298,-500.0,0.00016463,2]
[347122912,1735511450308,-500.0,0.00016463,2]
[347122913,1735511450317,-768.8,0.00016463,2]
[347122914,1735511450326,-500.0,0.00016463,2]
[347122915,1735511450336,-500.0,0.00016463,2]
[347122916,1735511450345,-1303.18,0.00016463,2]
[347122917,1735511450354,-500.0,0.00016463,2]
[347122918,1735511450363,-924.76,0.00016463,2]
[347122919,1735511450372,-325.44461047,0.00016463,2]
[347122920,1735511450383,-500.0,0.00016463,2]
[347122921,1735511450393,-561.33,0.00016463,2]
[347122922,1735511450402,-500.0,0.00016463,2]
[347122923,1735511450412,-500.0,0.00016463,2]
[347122924,1735511450420,-500.0,0.00016463,2]
[347122925,1735511450431,-500.0,0.00016463,2]
[347122926,1735511450440,-574.88,0.00016463,2]
[347122927,1735511450448,-500.0,0.00016463,2]
[347122928,1735511450457,-2246.21,0.00016463,2]
[347122929,1735511450466,-500.0,0.00016463,2]
[347122930,1735511450475,-899.24,0.00016463,2]
[347122931,1735511450484,-500.0,0.00016463,2]
[347122932,1735511450494,-640.12,0.00016463,2]
[347122933,1735511450503,-330.19735669,0.00016463,2]
[347122934,1735511450512,-522.02,0.00016463,2]
[347122935,1735511450521,-500.0,0.00016463,2]
[347122936,1735511450530,-680.75,0.00016463,2]
[347122937,1735511450540,-500.0,0.00016463,2]
[347122938,1735511450549,-500.0,0.00016463,2]
[347122939,1735511450558,-539.46,0.00016463,2]
[347122940,1735511450568,-500.0,0.00016463,2]
[347122941,1735511450578,-500.0,0.00016463,2]
[347122942,1735511450587,-1066.07,0.00016463,2]
[347122943,1735511450596,-582.44,0.00016463,2]
[347122944,1735511450605,-1104.3,0.00016463,2]
[347122945,1735511450614,-500.0,0.00016463,2]
[347122946,1735511450623,-1227.26,0.00016463,2]
[347122947,1735511450632,-1293.76,0.00016463,2]
[347122948,1735511450641,-500.0,0.00016463,2]
[347122949,1735511450650,-790.6,0.00016463,2]
[347122950,1735511450663,-693.49,0.00016463,2]
[347122951,1735511450672,-500.0,0.00016463,2]
[347122952,1735511450680,-1548.46,0.00016463,2]
[347122953,1735511450691,-500.0,0.00016463,2]
[347122954,1735511450700,-987.53,0.00016463,2]
[347122955,1735511450709,-500.0,0.00016463,2]
[347122956,1735511450718,-500.0,0.00016463,2]
[347122957,1735511450728,-737.74,0.00016463,2]
[347122958,1735511450738,-1459.1,0.00016463,2]
[347122959,1735511450747,-500.0,0.00016463,2]
[347122960,1735511450757,-1474.97,0.00016463,2]
[347122961,1735511450766,-1107.84,0.00016463,2]
[347122962,1735511450775,-1156.75,0.00016463,2]
[347122963,1735511450785,-3262.93,0.00016463,2]
[347122964,1735511450793,-4116.43,0.00016463,2]
[347122965,1735511450802,-3944.91,0.00016463,2]
[347122966,1735511450811,-300.0,0.00016463,2]
[347122967,1735511450820,-2726.24,0.00016464,2]
[347122968,1735511450829,-1472.75,0.00016464,2]
[347122969,1735511450838,-901.18,0.00016464,2]
[347122970,1735511450848,-1886.09,0.00016464,2]
[347122971,1735511450857,-13211.08,0.00016464,2]
[347122972,1735511450866,-500.0,0.00016464,2]
[347122973,1735511450875,-627.38,0.00016464,2]
[347122974,1735511450884,-1000.0,0.00016464,2]
[347122975,1735511450893,-2893.0,0.00016464,2]
[347122976,1735511450902,-983.85,0.00016464,2]
[347122977,1735511450911,-1587.14,0.00016464,2]
[347122978,1735511450921,-796.67,0.00016464,2]
[347122979,1735511450930,-977.25,0.00016464,2]
[347122980,1735511450939,-500.0,0.00016464,2]
[347122981,1735511450948,-2933.38,0.00016464,2]
[347122982,1735511450957,-3167.18,0.00016464,2]
[347122983,1735511450966,-500.0,0.00016473,2]
[347122984,1735511450975,-8994.4738328,0.0001649,2]
[347122985,1735511450985,-3678.39,0.00016491,2]
[347122986,1735511450994,-300.0,0.00016493,2]
[347122987,1735511451003,-300.0,0.00016493,2]
[347122988,1735511451012,-300.0,0.00016493,2]
[347122989,1735511451021,-300.0,0.00016493,2]
[347122990,1735511451031,-300.0,0.00016493,2]
[347122991,1735511451040,-176.31407598,0.00016493,2]
[347122992,1735511451049,-150.0,0.00016493,2]
[347122993,1735511451058,-260.61103599,0.00016493,2]
[347122994,1735511451067,-300.0,0.00016493,2]
[347122995,1735511451076,-300.0,0.00016493,2]
[347122996,1735511451086,-300.0,0.00016493,2]
[347122997,1735511451096,-300.0,0.00016493,2]
[347122998,1735511451105,-300.0,0.00016493,2]
[347122999,1735511451114,-300.0,0.00016493,2]
[347123000,1735511451123,-300.0,0.00016493,2]
[347123001,1735511451132,-300.0,0.00016493,2]